bitfinex-derivatives/quotes_BNBF0:USTF0_20250510
["timestamp","ask_amount","ask_price","bid_price","bid_amount"]
[1746854717238,0.24996783,660.31,659.18,0.30340726]
[1746854719039,0.24996783,660.31,659.18,0.83340726]
[1746854720039,0.26372427,660.32,659.18,0.83340726]
[1746854720840,0.25000826,660.31,659.18,0.83340726]
[1746854721735,0.26372427,660.32,659.18,0.83340726]
[1746854722239,0.25000867,660.31,659.18,0.83340726]
[1746854722941,0.26374126,660.3,659.18,0.83340726]
[1746854723639,0.25000867,660.29,659.18,0.83340726]
[1746854725841,0.26373826,660.28,659.18,0.83340726]
[1746854726041,0.25000867,660.27,659.18,0.83340726]
[1746854729146,0.25000867,660.27,659.19,0.30336933]
[1746854729944,0.25000867,660.27,659.18,0.83340726]
[1746854730244,0.25000867,660.27,659.19,0.30340266]
[1746854731740,0.25000867,660.56,659.19,0.30340266]
[1746854731942,0.25000867,660.55,659.19,0.30340266]
[1746854732143,0.25000867,660.54,659.2,0.405]
[1746854732348,0.25000867,660.54,659.21,0.30339345]
[1746854732547,0.25000867,660.53,659.21,0.30339345]
[1746854732747,0.25000867,660.52,659.21,0.30339345]
[1746854732945,0.25000867,660.51,659.21,0.30339345]
[1746854733148,0.25000867,660.5,659.21,0.30339345]
[1746854733447,0.25000867,660.49,659.21,0.30339345]
[1746854733649,0.25000867,660.48,659.21,0.30339345]
[1746854733949,0.25000867,660.47,659.21,0.30339345]
[1746854734250,0.25000867,660.46,659.21,0.30339345]
[1746854734451,0.25000867,660.45,659.21,0.30339345]
[1746854734652,0.25000867,660.52,659.21,0.30339345]
[1746854734847,0.25000867,660.51,659.21,0.30339345]
[1746854735352,0.25000867,660.5,659.21,0.30339345]
[1746854735651,0.25000867,660.49,659.21,0.30339345]
[1746854735854,0.51374094,660.49,659.21,0.30339345]
[1746854736054,0.26373227,660.49,659.21,0.30339345]
[1746854736353,0.24995894,660.48,659.21,0.30339345]
[1746854736949,0.24995894,660.47,659.21,0.30339345]
[1746854737455,0.24995894,660.46,659.21,0.30339345]
[1746854737852,0.26373726,660.45,659.21,0.30339345]
[1746854738052,0.5136962,660.45,659.21,0.30339345]
[1746854738254,0.24995894,660.44,659.21,0.30339345]
[1746854739055,0.24995894,660.44,659.22,0.30334542]
[1746854739457,0.24995894,660.44,659.23,0.30334542]
[1746854739655,0.24995894,660.44,659.25,0.30337504]
[1746854740955,0.26371828,660.43,659.25,0.30337504]
[1746854741455,0.24995894,660.42,659.25,0.30337504]
[1746854747156,0.26364136,660.41,659.25,0.30337504]
[1746854747459,0.24995894,660.4,659.25,0.30337504]
[1746854748558,0.24995894,660.4,659.26,0.30333023]
[1746854748760,0.24995894,660.4,659.28,0.30336124]
[1746854749855,1.93745811,660.86,659.28,0.30336124]
[1746854750158,0.2636893,660.39,659.28,0.30336124]
[1746854750358,0.24995894,660.85,659.28,0.30336124]
[1746854750557,0.24995894,660.38,659.28,0.30336124]
[1746854750857,0.24995894,660.85,659.28,0.30336124]
[1746854751158,0.2636913,660.37,659.28,0.30336124]
[1746854751458,0.24995894,660.84,659.28,0.30336124]
[1746854751659,0.51365024,660.36,659.28,0.30336124]
[1746854751858,0.2636913,660.36,659.29,0.30330969]
[1746854752161,0.51359404,660.35,659.31,0.30334743]
[1746854752353,0.24990274,660.34,659.31,0.30334743]
[1746854752959,0.24990274,660.88,659.31,0.30334743]
[1746854753360,0.24990274,660.87,659.31,0.30334743]
[1746854753660,0.24990274,660.86,659.31,0.30334743]
[1746854753860,0.51359104,660.86,659.31,0.30334743]
[1746854754063,0.24990274,660.85,659.31,0.30334743]
[1746854754356,0.24990274,660.84,659.31,0.30334743]
[1746854754656,0.24990274,660.83,659.31,0.30334743]
[1746854754960,0.24990274,660.82,659.31,0.30334743]
[1746854755462,0.24990274,660.81,659.31,0.30334743]
[1746854755860,0.51358805,660.8,659.31,0.30334743]
[1746854756057,0.24990274,660.79,659.31,0.30334743]
[1746854756263,0.24990274,660.78,659.31,0.30334743]
[1746854756663,0.24990274,660.77,659.31,0.30334743]
[1746854756962,0.24990274,660.76,659.31,0.30334743]
[1746854757463,0.24990274,660.75,659.31,0.30334743]
[1746854757764,0.24990274,660.74,659.31,0.30334743]
[1746854758164,0.24990274,660.73,659.31,0.30334743]
[1746854758865,0.24990274,660.72,659.31,0.30334743]
[1746854759060,0.51357905,660.72,659.31,0.30334743]
[1746854759257,0.24990274,660.71,659.31,0.30334743]
[1746854759759,0.24990274,660.7,659.31,0.30334743]
[1746854760065,0.24990274,660.69,659.31,0.30334743]
[1746854760463,0.24990274,660.71,659.32,0.3032724]
[1746854760665,0.24990274,660.71,659.34,0.30333363]
[1746854761965,0.2636923,660.7,659.34,0.30333363]
[1746854762667,0.24990274,660.69,659.34,0.30333363]
[1746854766467,0.24990274,660.69,659.35,0.502]
[1746854766761,0.24990274,660.69,659.37,0.30331983]
[1746854767866,0.26365035,660.68,659.37,0.30331983]
[1746854768267,0.24990274,660.67,659.37,0.30331983]
[1746854768667,0.24990274,660.66,659.37,0.30331983]
[1746854768968,0.24990274,660.65,659.37,0.30331983]
[1746854769268,0.24990274,660.64,659.37,0.30331983]
[1746854769660,0.24990274,660.63,659.37,0.30331983]
[1746854769963,0.24990274,660.62,659.37,0.30331983]
[1746854770361,0.24990274,660.61,659.37,0.30331983]
[1746854770962,0.24990274,660.6,659.37,0.30331983]
[1746854771365,0.24990274,660.59,659.37,0.30331983]
[1746854771669,0.24990274,660.58,659.37,0.30331983]
[1746854771970,0.51356407,660.58,659.37,0.30331983]
[1746854772167,0.24990274,660.57,659.37,0.30331983]
[1746854772363,1.93745811,660.54,659.37,0.30331983]
[1746854772769,0.24990274,660.53,659.37,0.30331983]
[1746854773071,0.24990274,660.52,659.37,0.30331983]
[1746854773368,0.24990274,660.51,659.37,0.30331983]
[1746854773670,0.24990274,660.5,659.37,0.30331983]
[1746854773864,0.51362801,660.5,659.37,0.30331983]
[1746854774067,0.24990274,660.49,659.37,0.30331983]
[1746854774567,0.24990274,660.48,659.37,0.30331983]
[1746854775170,0.24990274,660.47,659.37,0.30331983]
[1746854775469,0.24990274,660.46,659.37,0.30331983]
[1746854775769,0.24990274,660.45,659.37,0.30331983]
[1746854776170,0.24990274,660.44,659.37,0.30331983]
[1746854776672,0.24990274,660.43,659.37,0.30331983]
[1746854776972,0.24990274,660.55,659.37,0.30331983]
[1746854777173,0.26372327,660.43,659.37,0.30331983]
[1746854777373,0.24990274,660.54,659.37,0.30331983]
[1746854777566,0.24990274,660.53,659.37,0.30331983]
[1746854778069,0.26371128,660.52,659.37,0.30331983]
[1746854778277,0.51361402,660.52,659.37,0.30331983]
[1746854778473,0.24990274,660.51,659.37,0.30331983]
[1746854778772,0.24990274,660.5,659.37,0.30331983]
[1746854779172,0.24990274,660.51,659.37,0.30331983]
[1746854779874,0.2636893,660.5,659.37,0.30331983]
[1746854780472,0.24990274,660.49,659.37,0.30331983]
[1746854781775,0.24990274,660.49,659.38,0.361]
[1746854782078,0.24990274,660.49,659.39,0.30331063]
[1746854782570,0.24990274,660.49,659.4,1.26859012]
[1746854782774,0.24990274,660.49,659.42,0.30329683]
[1746854782976,0.24990274,660.49,659.43,1.26859012]
[1746854783169,0.24990274,660.49,659.45,0.30328303]
[1746854783373,0.24990274,660.49,659.46,0.96541784]
[1746854783570,0.24990274,660.49,659.48,0.30326924]
[1746854783773,0.24990274,660.49,659.49,0.96541784]
[1746854783969,0.24990274,660.49,659.5,0.96541784]
[1746854784175,0.24990274,660.49,659.48,0.30326924]
[1746854784176,0.24990274,660.49,659.51,1.57184556]
[1746854784475,0.24990274,660.49,659.53,0.30324625]
[1746854784776,0.24990274,660.49,659.54,1.26859012]
[1746854784968,0.24990274,660.49,659.56,0.30323245]
[1746854785473,0.24990274,660.49,659.57,0.30317228]
[1746854785672,0.24990274,660.49,659.59,0.30321866]
[1746854786076,0.26351658,660.48,659.6,0.30317228]
[1746854786277,0.24990274,660.47,659.62,0.30320487]
[1746854786476,0.24990274,660.47,659.63,0.96321023]
[1746854786678,0.24990274,660.47,659.65,0.30319108]
[1746854786876,0.24990274,661.5,659.66,0.96321023]
[1746854787079,0.30234773,661.49,659.68,0.30317729]
[1746854787279,0.30234773,661.49,659.69,0.30317228]
[1746854787580,0.5131574,661.48,659.71,0.30316351]
[1746854787773,0.24970166,661.47,659.71,0.30316351]
[1746854788077,0.24970166,661.46,659.72,0.30317228]
[1746854788279,0.24970166,661.46,659.74,0.30314972]
[1746854788478,0.24970166,661.45,659.74,0.30314972]
[1746854788779,0.55207224,661.44,659.74,0.30314972]
[1746854788977,0.30237515,661.43,659.74,0.30314972]
[1746854789175,0.55207681,661.43,659.74,0.30314972]
[1746854789381,0.24970166,661.42,659.74,0.30314972]
[1746854789682,0.30237515,661.43,659.74,0.30314972]
[1746854790482,0.24969702,661.42,659.74,0.30314972]
[1746854790983,0.24969702,661.41,659.74,0.30314972]
[1746854791384,0.24969702,661.4,659.74,0.30314972]
[1746854791783,0.24969702,661.39,659.74,0.30314972]
[1746854791979,0.24969702,661.38,659.74,0.30314972]
[1746854792285,0.24969702,661.37,659.74,0.30314972]
[1746854792679,0.24969702,661.36,659.74,0.30314972]
[1746854793185,0.24969702,661.35,659.74,0.30314972]
[1746854793485,0.24969702,661.34,659.74,0.30314972]
[1746854793982,0.24969702,661.38,659.74,0.30314972]
[1746854794485,0.24969702,661.37,659.74,0.30314972]
[1746854794784,0.30237515,661.43,659.74,0.30314972]
[1746854795092,0.24969672,661.42,659.74,0.30314972]
[1746854795389,0.24969672,661.41,659.74,0.30314972]
[1746854795788,0.24969672,661.4,659.74,0.30314972]
[1746854795989,0.5132133,661.4,659.74,0.30314972]
[1746854796187,0.24969672,661.39,659.74,0.30314972]
[1746854796688,0.24969672,661.38,659.74,0.30314972]
[1746854797190,0.24969672,661.39,659.74,0.30314972]
[1746854797490,0.55209016,661.39,659.74,0.30314972]
[1746854797891,0.24969672,661.38,659.74,0.30314972]
[1746854798192,0.30240258,661.37,659.74,0.30314972]
[1746854798586,0.24969672,661.36,659.74,0.30314972]
[1746854800893,0.26349264,661.35,659.74,0.30314972]
[1746854801195,0.24969672,661.34,659.74,0.30314972]
[1746854802996,0.24969672,661.33,659.74,0.30314972]
[1746854803291,0.24969672,661.32,659.74,0.30314972]
[1746854803696,0.24969672,661.31,659.74,0.30314972]
[1746854803893,0.24969672,661.3,659.74,0.30314972]
[1746854804397,0.24969672,661.29,659.74,0.30314972]
[1746854804795,0.24969672,661.28,659.74,0.30314972]
[1746854804999,0.51319734,661.28,659.74,0.30314972]
[1746854805390,0.24969672,661.27,659.74,0.30314972]
[1746854805695,0.24969672,661.26,659.74,0.30314972]
[1746854805995,0.24969672,661.25,659.74,0.30314972]
[1746854806198,0.24969672,661.25,659.75,0.95890763]
[1746854806400,0.24969672,661.24,659.74,0.30314972]
[1746854806597,0.24969672,661.24,659.75,0.95878964]
[1746854806796,0.24969672,661.23,659.74,0.30314972]
[1746854806997,0.51316044,661.23,659.74,0.30314972]
[1746854807197,0.24969672,661.22,659.74,0.30314972]
[1746854807598,0.24969672,661.21,659.74,0.30314972]
[1746854807997,0.24969672,661.2,659.74,0.30314972]
[1746854808395,0.24969672,661.19,659.74,0.30314972]
[1746854808799,0.24969672,661.18,659.74,0.30314972]
[1746854809198,0.24969672,661.22,659.74,0.30314972]
[1746854809598,0.24969672,661.21,659.74,0.30314972]
[1746854809800,0.24969672,661.21,659.75,0.95826504]
[1746854809998,0.24969672,661.22,659.77,0.30313594]
[1746854810198,0.26344676,661.2,659.78,0.95798454]
[1746854810394,0.26344676,661.2,659.8,0.30312215]
[1746854810595,0.26344676,661.2,659.81,0.95798454]
[1746854810795,0.26344676,661.2,659.83,0.30310837]
[1746854810997,0.24969672,661.19,659.83,0.30310837]
[1746854811195,0.26344676,661.2,659.83,0.30310837]
[1746854811396,0.24961407,661.19,659.83,0.30310837]
[1746854812997,0.26344377,661.18,659.83,0.30310837]
[1746854813492,0.24961407,661.17,659.83,0.30310837]
[1746854816201,0.26343779,661.16,659.83,0.30310837]
[1746854816803,0.26343779,661.16,659.84,0.30298654]
[1746854817005,0.24960832,661.15,659.86,0.30309459]
[1746854817199,0.24960832,661.15,659.87,0.95713906]
[1746854817403,0.24960832,661.15,659.89,0.30308081]
[1746854817702,0.24960832,661.15,659.9,0.398]
[1746854817905,0.24960832,661.15,659.92,0.30306703]
[1746854818904,0.26342283,661.14,659.92,0.30306703]
[1746854819299,0.24960832,661.13,659.92,0.30306703]
[1746854821898,0.24960832,661.36,659.92,0.30306703]
[1746854822902,0.24960832,661.35,659.92,0.30306703]
[1746854823104,0.51306107,661.35,659.92,0.30306703]
[1746854823303,0.24960832,661.34,659.92,0.30306703]
[1746854823704,0.24960832,661.33,659.92,0.30306703]
[1746854823902,0.24960832,661.33,659.93,0.517]
[1746854824203,0.24960832,661.32,659.95,0.30305326]
[1746854824607,0.24960832,661.31,659.95,0.30305326]
[1746854824907,0.24960832,661.3,659.95,0.30305326]
[1746854825107,0.51306206,661.3,659.95,0.30305326]
[1746854825306,0.24960832,661.29,659.95,0.30305326]
[1746854825706,0.24960832,661.28,659.95,0.30305326]
[1746854826106,0.24960832,661.29,659.95,0.30305326]
[1746854827806,0.24960832,661.36,659.95,0.30305326]
[1746854828008,0.26346372,661.28,659.95,0.30305326]
[1746854828209,0.24960832,661.27,659.95,0.30305326]
[1746854828913,0.24960832,661.36,659.95,0.30305326]
[1746854829209,0.26346372,661.26,659.95,0.30305326]
[1746854829412,0.24960832,661.35,659.95,0.30305326]
[1746854829713,0.26346372,661.25,659.95,0.30305326]
[1746854830015,0.24960832,661.34,659.95,0.30305326]
[1746854830213,0.24960832,661.24,659.95,0.30305326]
[1746854830413,0.24960832,661.36,659.95,0.30305326]
[1746854830810,0.24960832,661.35,659.95,0.30305326]
[1746854831015,0.51307204,661.35,659.95,0.30305326]
[1746854831215,0.24960832,661.34,659.95,0.30305326]
[1746854831515,0.24960832,661.33,659.95,0.30305326]
[1746854831817,0.24960832,661.32,659.95,0.30305326]
[1746854832210,0.24960832,661.31,659.95,0.30305326]
[1746854832616,0.24960832,661.3,659.95,0.30305326]
[1746854832916,0.24960832,661.29,659.95,0.30305326]
[1746854833319,0.24960832,661.28,659.95,0.30305326]
[1746854833619,0.24960832,661.27,659.95,0.30305326]
[1746854834017,0.51309797,661.26,659.95,0.30305326]
[1746854834419,0.24960832,661.25,659.95,0.30305326]
[1746854834719,0.30246661,661.23,659.95,0.30305326]
[1746854834921,0.30246661,661.23,659.93,0.517]
[1746854835121,0.24960832,661.22,659.93,0.517]
[1746854835316,0.24960832,661.21,659.93,0.517]
[1746854835521,0.30248033,661.2,659.93,0.517]
[1746854835823,0.24960832,661.19,659.93,0.517]
[1746854836019,0.30249406,661.17,659.93,0.517]
[1746854836420,0.24960832,661.16,659.93,0.517]
[1746854836621,0.30250778,661.14,659.93,0.517]
[1746854836821,1.93745811,660.65,659.93,0.517]
[1746854837519,0.24960832,660.64,659.93,0.517]
[1746854838024,0.24960832,660.63,659.93,0.517]
[1746854838324,0.24960832,660.64,659.93,0.517]
[1746854838925,0.24960832,660.95,659.93,0.517]
[1746854841227,0.30250778,661.14,659.93,0.517]
[1746854841426,0.30250778,661.14,659.93,0.846]
[1746854841724,0.24986366,661.13,659.93,0.846]
[1746854841927,0.30251694,661.12,659.93,0.846]
[1746854842127,0.24986366,661.11,659.93,0.846]
[1746854842327,0.30252609,661.1,659.93,0.846]
[1746854842528,0.55238975,661.1,659.93,0.846]
[1746854842928,0.24986366,661.09,659.93,0.846]
[1746854843131,0.5523989,661.08,659.93,0.846]
[1746854843430,0.24986366,661.07,659.93,0.846]
[1746854845931,0.26357047,661.06,659.93,0.846]
[1746854846431,0.24986366,661.05,659.93,0.846]
[1746854848233,0.24986366,661.04,659.93,0.846]
[1746854848534,0.24986366,661.03,659.93,0.846]
[1746854848833,0.30253524,661.08,659.93,0.846]
[1746854849433,0.24985021,661.07,659.93,0.846]
[1746854849734,0.24985021,661.06,659.93,0.846]
[1746854849928,0.51342068,661.06,659.93,0.846]
[1746854850131,0.24985021,661.05,659.93,0.846]
[1746854850732,0.24985021,661.04,659.93,0.846]
[1746854851037,0.24985021,661.03,659.93,0.846]
[1746854851435,0.24985021,661.02,659.93,0.846]
[1746854851736,0.24985021,661.01,659.93,0.846]
[1746854852136,0.24985021,661.0,659.93,0.846]
[1746854852437,0.24985021,660.99,659.93,0.846]
[1746854852737,0.24985021,660.98,659.93,0.846]
[1746854853036,0.24985021,660.97,659.93,0.846]
[1746854853537,0.24985021,660.96,659.93,0.846]
[1746854854136,0.24985021,660.95,659.93,0.846]
[1746854854440,0.24985021,660.94,659.93,0.846]
[1746854854846,0.24985021,660.97,659.93,0.846]
[1746854855046,0.26358045,660.93,659.93,0.846]
[1746854855741,0.24985021,660.92,659.93,0.846]
[1746854856248,0.24985021,660.91,659.93,0.846]
[1746854856547,0.24985021,660.9,659.93,0.846]
[1746854856846,0.24985021,660.89,659.93,0.846]
[1746854857441,0.24985021,660.88,659.93,0.846]
[1746854857645,0.24985021,660.87,659.93,0.846]
[1746854858045,0.24985021,660.86,659.93,0.846]
[1746854858747,0.24985021,660.85,659.93,0.846]
[1746854859050,0.24985021,660.84,659.93,0.846]
[1746854859446,0.24985021,660.83,659.93,0.846]
[1746854859750,0.24985021,660.82,659.93,0.846]
[1746854860247,0.24985021,660.81,659.93,0.846]
[1746854860546,0.24985021,660.8,659.93,0.846]
[1746854860945,0.24985021,660.79,659.93,0.846]
[1746854861447,0.24985021,660.78,659.93,0.846]
[1746854861648,0.24985021,660.78,659.94,0.30305785]
[1746854861848,0.24985021,661.07,659.94,0.30305785]
[1746854862051,0.26351459,660.77,659.94,0.30305785]
[1746854862245,0.24985021,661.07,659.94,0.30305785]
[1746854863954,0.26357047,661.06,659.94,0.30305785]
[1746854864454,0.24985021,661.05,659.95,0.484]
[1746854864654,0.24985021,661.05,659.96,0.30304866]
[1746854865356,0.24985021,661.05,659.97,0.351]
[1746854865556,0.24985021,661.05,659.98,0.30303948]
[1746854867057,0.26350661,661.04,659.98,0.30303948]
[1746854867455,0.24985021,661.03,659.98,0.30303948]
[1746854869952,0.24985021,661.07,659.98,0.30303948]
[1746854870153,0.26352457,661.02,659.98,0.30303948]
[1746854870459,0.24985021,661.01,659.98,0.30303948]
[1746854873061,0.26352457,661.0,659.98,0.30303948]
[1746854873555,0.24985021,660.99,659.98,0.30303948]
[1746854875962,0.26352457,660.98,659.98,0.30303948]
[1746854876462,0.24985021,660.97,659.98,0.30303948]
[1746854878967,0.24985021,661.07,659.98,0.30303948]
[1746854879159,0.26352457,660.96,659.98,0.30303948]
[1746854879361,0.24985021,661.06,659.98,0.30303948]
[1746854879864,0.24985021,661.05,659.98,0.30303948]
[1746854880168,0.51337478,661.05,659.98,0.30303948]
[1746854880568,0.24985021,661.04,659.98,0.30303948]
[1746854882168,0.26352457,661.03,659.98,0.30303948]
[1746854883164,0.24985021,661.02,659.98,0.30303948]
[1746854884865,0.24985021,661.01,659.98,0.30303948]
[1746854885072,0.51337478,661.01,659.98,0.30303948]
[1746854885270,0.24985021,661.0,659.98,0.30303948]
[1746854886974,0.24985021,660.99,659.98,0.30303948]
[1746854887375,0.24985021,661.0,659.98,0.30303948]
[1746854887569,0.24985021,660.99,659.98,0.30303948]
[1746854888075,0.51338276,660.98,659.98,0.30303948]
[1746854888374,0.24985021,660.97,659.98,0.30303948]
[1746854891078,0.24985021,661.07,659.98,0.30303948]
[1746854891574,0.24985021,661.06,659.98,0.30303948]
[1746854892180,0.5134087,661.05,659.98,0.30303948]
[1746854892478,0.24985021,661.04,659.98,0.30303948]
[1746854892771,0.24985021,661.03,659.98,0.30303948]
[1746854893677,0.24985021,661.02,659.98,0.30303948]
[1746854894079,0.24985021,661.01,659.98,0.30303948]
[1746854894374,0.24985021,661.0,659.98,0.30303948]
[1746854894577,0.24985021,660.99,659.98,0.30303948]
[1746854894980,0.51340072,660.98,659.98,0.30303948]
[1746854895478,0.24985021,660.97,659.98,0.30303948]
[1746854895679,0.24985021,660.96,659.98,0.30303948]
[1746854896280,0.24985021,660.95,659.98,0.30303948]
[1746854896580,0.24985021,660.94,659.98,0.30303948]
[1746854897080,0.24985021,660.93,659.98,0.30303948]
[1746854897382,0.24985021,660.92,659.98,0.30303948]
[1746854897682,0.24985021,660.91,659.98,0.30303948]
[1746854897881,0.51337478,660.91,659.98,0.30303948]
[1746854898087,0.24985021,660.9,659.98,0.30303948]
[1746854898482,0.24985021,660.89,659.98,0.30303948]
[1746854898785,0.24985021,660.88,659.98,0.30303948]
[1746854899183,0.24985021,660.87,659.98,0.30303948]
[1746854899484,0.24985021,660.86,659.98,0.30303948]
[1746854899886,0.24985021,660.85,659.98,0.30303948]
[1746854900286,0.24985021,660.84,659.98,0.30303948]
[1746854900687,0.24985021,660.83,659.98,0.30303948]
[1746854900987,0.51337478,660.83,659.98,0.30303948]
[1746854901186,0.26352457,660.83,659.98,0.30303948]
[1746854901587,0.24985021,660.82,659.98,0.30303948]
[1746854903089,0.24985021,661.04,659.98,0.30303948]
[1746854903387,0.24985021,661.03,659.98,0.30303948]
[1746854903686,1.93745811,661.05,659.98,0.30303948]
[1746854903987,0.26352756,661.02,659.98,0.30303948]
[1746854904387,0.24974551,661.01,659.98,0.30303948]
[1746854904581,0.24974551,661.0,659.98,0.30303948]
[1746854904986,0.24974551,660.99,659.98,0.30303948]
[1746854905283,0.24974551,660.98,659.98,0.30303948]
[1746854905890,0.24974551,660.97,659.98,0.30303948]
[1746854906588,0.24974551,661.01,659.98,0.30303948]
[1746854909087,0.26356049,661.0,659.98,0.30303948]
[1746854909592,0.24974551,660.99,659.98,0.30303948]
[1746854909986,0.24974551,660.98,659.98,0.30303948]
[1746854910393,0.24974551,660.98,659.99,0.316]
[1746854910594,0.24974551,660.97,659.99,0.316]
[1746854910994,0.24974551,660.96,659.99,0.316]
[1746854911394,0.24974551,660.95,659.99,0.316]
[1746854911894,0.24974551,660.94,659.99,0.316]
[1746854912193,0.24974551,660.93,659.99,0.316]
[1746854912593,0.24974551,660.92,659.99,0.316]
[1746854912995,0.24974551,660.91,659.99,0.316]
[1746854913395,0.24974551,660.9,659.99,0.316]
[1746854913696,0.24974551,660.89,659.99,0.316]
[1746854914093,0.24974551,660.88,659.99,0.316]
[1746854914491,0.24974551,660.87,659.99,0.316]
[1746854914895,0.24974551,660.86,659.99,0.316]
[1746854915195,0.24974551,660.85,659.99,0.316]
[1746854915795,0.24974551,660.84,659.99,0.316]
[1746854916190,0.24974551,660.99,659.99,0.316]
[1746854917994,0.51332297,660.98,659.99,0.316]
[1746854918297,0.24974551,660.97,659.99,0.316]
[1746854918597,0.24974551,660.96,659.99,0.316]
[1746854918900,0.24974551,660.97,659.99,0.316]
[1746854921100,0.26375325,660.96,659.99,0.316]
[1746854921599,0.24974551,660.95,659.99,0.316]
[1746854922000,0.24974551,660.94,659.99,0.316]
[1746854922399,0.24974551,660.93,659.99,0.316]
[1746854922799,0.24974551,660.92,659.99,0.316]
[1746854923099,0.24974551,660.91,659.99,0.316]
[1746854923299,0.24974551,660.91,660.0,0.337]
[1746854923599,0.24974551,660.95,660.0,0.337]
[1746854924001,0.26357646,660.9,660.0,0.337]
[1746854924295,0.24974551,660.89,660.0,0.337]
[1746854926902,0.26351459,660.88,660.0,0.337]
[1746854927297,0.24974551,660.87,660.0,0.337]
[1746854930006,0.26351459,660.86,660.0,0.337]
[1746854930504,0.24974551,660.85,660.0,0.337]
[1746854931013,0.26351459,660.86,660.0,0.337]
[1746854931408,0.24973098,660.85,660.0,0.337]
[1746854932914,0.26351459,660.84,660.0,0.337]
[1746854933207,0.24973098,660.83,660.0,0.337]
[1746854935111,0.24973098,660.83,660.01,0.30302571]
[1746854940612,0.24973098,660.83,660.02,0.41]
[1746854940812,0.24973098,660.83,660.03,0.30301652]
[1746854941911,0.26344975,660.82,660.03,0.30301652]
[1746854942413,0.24973098,660.81,660.03,0.30301652]
[1746854949520,0.24973098,660.81,660.03,0.2952963]
[1746854951322,1.93745811,662.05,660.03,0.2952963]
[1746854951522,0.30213762,661.95,660.03,0.2952963]
[1746854952122,0.512735,661.94,660.03,0.2952963]
[1746854952321,0.2634009,661.94,660.03,0.2952963]
[1746854952520,0.30215131,661.92,660.03,0.2952963]
[1746854953326,0.30215131,661.92,660.04,0.349]
[1746854953521,0.24933354,661.91,660.04,0.349]
[1746854953721,0.30216501,661.89,660.04,0.349]
[1746854954222,0.24933354,661.88,660.04,0.349]
[1746854954520,0.3021787,661.86,660.04,0.349]
[1746854954925,0.26341685,661.85,660.04,0.349]
[1746854955125,0.51275039,661.85,660.04,0.349]
[1746854955319,0.24933354,661.84,660.04,0.349]
[1746854955620,0.24933354,661.83,660.04,0.349]
[1746854955826,0.30220153,661.81,660.04,0.349]
[1746854956026,0.24933354,661.8,660.04,0.349]
[1746854956327,0.30221523,661.78,660.04,0.349]
[1746854956721,0.24933354,661.77,660.04,0.349]
[1746854957227,1.93745811,661.74,660.04,0.349]
[1746854957521,0.24933354,661.73,660.04,0.349]
[1746854957821,0.24933354,661.72,660.04,0.349]
[1746854958028,0.3022472,661.71,660.04,0.349]
[1746854958224,0.55158074,661.71,660.04,0.349]
[1746854958526,0.24933354,661.7,660.04,0.349]
[1746854958828,0.24933354,661.69,660.04,0.349]
[1746854959227,0.24933354,661.68,660.04,0.349]
[1746854959527,0.24933354,661.67,660.04,0.349]
[1746854959927,0.24933354,661.66,660.04,0.349]
[1746854960228,0.30227918,661.64,660.04,0.349]
[1746854960528,0.24933354,661.63,660.04,0.349]
[1746854960829,0.30229289,661.61,660.04,0.349]
[1746854961128,0.24933354,661.6,660.04,0.349]
[1746854961424,0.24933354,661.59,660.04,0.349]
[1746854961630,1.93745811,661.02,660.04,0.349]
[1746854961830,0.24933354,661.01,660.04,0.349]
[1746854962230,0.24933354,661.0,660.04,0.349]
[1746854962631,0.24933354,660.99,660.04,0.349]
[1746854962934,0.51287008,660.99,660.04,0.349]
[1746854963132,0.24933354,660.98,660.04,0.349]
[1746854963332,0.24933354,660.97,660.04,0.349]
[1746854963627,0.24933354,660.96,660.04,0.349]
[1746854964033,0.24933354,660.96,660.05,0.338]
[1746854964232,0.24933354,660.98,660.05,0.338]
[1746854964533,0.24933354,660.97,660.05,0.338]
[1746854965036,0.24933354,660.98,660.05,0.338]
[1746854966036,0.24933354,661.3,660.05,0.338]
[1746854966334,0.26350661,660.97,660.05,0.338]
[1746854966530,0.24933354,660.96,660.05,0.338]
[1746854966935,0.24933354,661.3,660.05,0.338]
[1746854967134,0.26350661,660.95,660.05,0.338]
[1746854967635,0.55177271,661.29,660.05,0.338]
[1746854967833,0.24933354,660.94,660.05,0.338]
[1746854968135,0.24933354,661.27,660.05,0.338]
[1746854968337,0.30245289,661.26,660.05,0.338]
[1746854968935,0.24933354,661.25,660.05,0.338]
[1746854969135,0.55179558,661.24,660.05,0.338]
[1746854969737,0.24933354,661.23,660.05,0.338]
[1746854970039,0.24933354,661.22,660.05,0.338]
[1746854970434,0.24933354,661.21,660.05,0.338]
[1746854970938,0.24933354,661.2,660.05,0.338]